[Event "*** Titled Tuesday Blitz"]
[Site "Chess.com"]
[Date "2020.05.05"]
[Round "6"]
[White "Piotrek1979"]
[Black "Mesa_1"]
[Result "0-1"]
[WhiteElo "2279"]
[BlackElo "2441"]
[TimeControl "180+1"]
[EndTime "11:08:25 PDT"]
[Termination "Mesa_1 won on time"]

1. Nf3 {[%clk 0:03:00.3]} 1... Nf6 {[%clk 0:02:58.9]} 2. g3 {[%clk 0:02:59.5]}
2... g6 {[%clk 0:02:59.8]} 3. Bg2 {[%clk 0:02:59.4]} 3... Bg7 {[%clk 0:03:00.7]}
4. O-O {[%clk 0:02:59.5]} 4... O-O {[%clk 0:03:01.6]} 5. c4 {[%clk 0:02:59.1]}
5... c5 {[%clk 0:03:00.2]} 6. Nc3 {[%clk 0:02:59.4]} 6... Nc6 {[%clk 0:03:00.1]}
7. d4 {[%clk 0:02:58.8]} 7... cxd4 {[%clk 0:03:01]} 8. Nxd4 {[%clk 0:02:58.7]}
8... Qa5 {[%clk 0:03:01.6]} 9. Nb3 {[%clk 0:02:53.7]} 9... Qh5 {[%clk
0:03:01.2]} 10. e3 {[%clk 0:02:53.6]} 10... d6 {[%clk 0:02:51]} 11. Qxh5 {[%clk
0:02:51.9]} 11... Nxh5 {[%clk 0:02:50]} 12. Nd5 {[%clk 0:02:48.6]} 12... a5
{[%clk 0:02:44.9]} 13. a4 {[%clk 0:02:40.4]} 13... Bf5 {[%clk 0:02:33.2]} 14.
Nd2 {[%clk 0:02:23.4]} 14... Bd3 {[%clk 0:02:18.2]} 15. Re1 {[%clk 0:02:21.8]}
15... e6 {[%clk 0:02:12.5]} 16. Nc7 {[%clk 0:01:32]} 16... Rac8 {[%clk
0:02:07.7]} 17. Nb5 {[%clk 0:01:31.6]} 17... Rfd8 {[%clk 0:02:08.3]} 18. Ne4
{[%clk 0:01:19.9]} 18... Bf8 {[%clk 0:01:23]} 19. g4 {[%clk 0:01:14.6]} 19...
Bxe4 {[%clk 0:01:18.8]} 20. Bxe4 {[%clk 0:01:13.6]} 20... Nf6 {[%clk 0:01:18.8]}
21. Bf3 {[%clk 0:01:10.8]} 21... Ne5 {[%clk 0:01:17.3]} 22. Bxb7 {[%clk
0:01:10.7]} 22... Rxc4 {[%clk 0:01:09]} 23. g5 {[%clk 0:01:08.6]} 23... Ne4
{[%clk 0:00:57]} 24. Rd1 {[%clk 0:00:52.1]} 24... Nf3+ {[%clk 0:00:42.8]} 25.
Kg2 {[%clk 0:00:49.6]} 25... Nh4+ {[%clk 0:00:39.9]} 26. Kf1 {[%clk 0:00:48.5]}
26... Nxg5 {[%clk 0:00:34.8]} 27. f4 {[%clk 0:00:39.2]} 27... Ne4 {[%clk
0:00:27.4]} 28. b3 {[%clk 0:00:38]} 28... Rb4 {[%clk 0:00:22.2]} 29. Ba3 {[%clk
0:00:36.4]} 29... d5 {[%clk 0:00:21.4]} 30. Bxb4 {[%clk 0:00:35.5]} 30... Bxb4
{[%clk 0:00:22.3]} 31. Rac1 {[%clk 0:00:32]} 31... Nc5 {[%clk 0:00:12.4]} 32.
Nd4 {[%clk 0:00:25]} 32... Rb8 {[%clk 0:00:11.4]} 33. Bc6 {[%clk 0:00:20.9]}
33... Ba3 {[%clk 0:00:11.1]} 34. Rb1 {[%clk 0:00:20]} 34... Kg7 {[%clk
0:00:09.3]} 35. Bb5 {[%clk 0:00:19.9]} 35... Bb4 {[%clk 0:00:08.7]} 36. Nc6
{[%clk 0:00:19.7]} 36... Ra8 {[%clk 0:00:08.2]} 37. Nxb4 {[%clk 0:00:20.6]}
37... axb4 {[%clk 0:00:09]} 38. Rdc1 {[%clk 0:00:20.5]} 38... Ne4 {[%clk
0:00:08]} 39. Ke2 {[%clk 0:00:19.8]} 39... Nf5 {[%clk 0:00:07.3]} 40. Rc7 {[%clk
0:00:18.8]} 40... Nc3+ {[%clk 0:00:07.2]} 41. Rxc3 {[%clk 0:00:17.9]} 41... bxc3
{[%clk 0:00:08.1]} 42. Rc1 {[%clk 0:00:18.2]} 42... d4 {[%clk 0:00:07.8]} 43. e4
{[%clk 0:00:16.9]} 43... Nd6 {[%clk 0:00:06.8]} 44. Kd3 {[%clk 0:00:14.6]} 44...
Nxb5 {[%clk 0:00:06.8]} 45. axb5 {[%clk 0:00:15.2]} 45... Rb8 {[%clk 0:00:07.2]}
46. Kc4 {[%clk 0:00:13.6]} 46... Kf6 {[%clk 0:00:07.2]} 47. Rd1 {[%clk
0:00:12.7]} 47... e5 {[%clk 0:00:07.1]} 48. fxe5+ {[%clk 0:00:11.1]} 48... Kxe5
{[%clk 0:00:08]} 49. Kb4 {[%clk 0:00:03.5]} 49... Kxe4 {[%clk 0:00:07.4]} 50.
Re1+ {[%clk 0:00:03.8]} 50... Kd3 {[%clk 0:00:07.5]} 51. Re7 {[%clk 0:00:04.7]}
51... c2 {[%clk 0:00:06.8]} 52. Rc7 {[%clk 0:00:05.2]} 52... Kd2 {[%clk
0:00:07]} 0-1

[Event "*** Titled Tuesday Blitz"]
[Site "Chess.com"]
[Date "2020.05.05"]
[Round "6"]
[White "Aureliano-Buendia"]
[Black "Shoytan"]
[Result "0-1"]
[WhiteElo "2399"]
[BlackElo "2584"]
[TimeControl "180+1"]
[EndTime "11:08:27 PDT"]
[Termination "Shoytan won by resignation"]

1. d4 {[%clk 0:03:00.8]} 1... Nf6 {[%clk 0:02:58.1]} 2. c4 {[%clk 0:03:00.2]}
2... g6 {[%clk 0:02:55.1]} 3. Nc3 {[%clk 0:03:00.1]} 3... Bg7 {[%clk 0:02:54.5]}
4. e4 {[%clk 0:03:00.5]} 4... d6 {[%clk 0:02:54.5]} 5. Be2 {[%clk 0:03:01.4]}
5... O-O {[%clk 0:02:54.7]} 6. Bg5 {[%clk 0:03:01.3]} 6... c5 {[%clk 0:02:53.5]}
7. d5 {[%clk 0:03:00.9]} 7... h6 {[%clk 0:02:53.3]} 8. Be3 {[%clk 0:03:00.5]}
8... e6 {[%clk 0:02:53.4]} 9. Qd2 {[%clk 0:02:59.9]} 9... exd5 {[%clk
0:02:52.2]} 10. cxd5 {[%clk 0:02:59.7]} 10... Re8 {[%clk 0:02:49.7]} 11. f3
{[%clk 0:02:59.6]} 11... a6 {[%clk 0:02:44]} 12. h4 {[%clk 0:02:53.2]} 12... Kh7
{[%clk 0:02:27]} 13. h5 {[%clk 0:02:48.9]} 13... g5 {[%clk 0:02:24.4]} 14. Bd3
{[%clk 0:02:47.5]} 14... Kg8 {[%clk 0:02:17.9]} 15. Nge2 {[%clk 0:02:35.8]}
15... b5 {[%clk 0:02:16.2]} 16. Ng3 {[%clk 0:02:31]} 16... b4 {[%clk 0:02:07.3]}
17. Nce2 {[%clk 0:02:30.1]} 17... a5 {[%clk 0:01:59.3]} 18. Bxg5 {[%clk
0:02:18.8]} 18... hxg5 {[%clk 0:01:58]} 19. h6 {[%clk 0:02:19]} 19... Bh8 {[%clk
0:01:50.4]} 20. Qxg5+ {[%clk 0:02:17.6]} 20... Kf8 {[%clk 0:01:50.9]} 21. h7
{[%clk 0:02:16.8]} 21... Ra7 {[%clk 0:01:13.8]} 22. Rh6 {[%clk 0:02:12.6]} 22...
Re5 {[%clk 0:01:09.5]} 23. Qf4 {[%clk 0:01:49.5]} 23... a4 {[%clk 0:01:05.3]}
24. Rh2 {[%clk 0:01:10]} 24... a3 {[%clk 0:01:00.1]} 25. b3 {[%clk 0:01:08]}
25... Ke7 {[%clk 0:00:40.1]} 26. Bb5 {[%clk 0:00:50.3]} 26... Qf8 {[%clk
0:00:33.8]} 27. Qh4 {[%clk 0:00:44.4]} 27... Kd8 {[%clk 0:00:28.4]} 28. Rc1
{[%clk 0:00:41]} 28... Qe7 {[%clk 0:00:21.8]} 29. Kf1 {[%clk 0:00:34.8]} 29...
Ne8 {[%clk 0:00:13.3]} 30. Bxe8 {[%clk 0:00:32]} 30... Qxh4 {[%clk 0:00:12.5]}
31. Rxh4 {[%clk 0:00:28.6]} 31... Rxe8 {[%clk 0:00:13.1]} 32. Rg4 {[%clk
0:00:26.9]} 32... Rae7 {[%clk 0:00:12.5]} 33. Rg8 {[%clk 0:00:26]} 33... f6
{[%clk 0:00:12.4]} 34. Nf4 {[%clk 0:00:21.5]} 34... Rxh7 {[%clk 0:00:12]} 35.
Rxe8+ {[%clk 0:00:17.6]} 35... Kxe8 {[%clk 0:00:12.9]} 36. Kf2 {[%clk
0:00:17.7]} 36... Kf7 {[%clk 0:00:13.4]} 37. Nd3 {[%clk 0:00:16.4]} 37... Nd7
{[%clk 0:00:13]} 38. Nxb4 {[%clk 0:00:16.6]} 38... cxb4 {[%clk 0:00:12.3]} 39.
Rxc8 {[%clk 0:00:16.5]} 39... f5 {[%clk 0:00:11.9]} 40. Nxf5 {[%clk 0:00:16]}
40... Be5 {[%clk 0:00:12.4]} 41. g3 {[%clk 0:00:15.7]} 41... Rh2+ {[%clk
0:00:12]} 42. Kg1 {[%clk 0:00:16.1]} 42... Rxa2 {[%clk 0:00:12.3]} 43. f4 {[%clk
0:00:16.7]} 43... Rb2 {[%clk 0:00:12.6]} 44. fxe5 {[%clk 0:00:15.1]} 44... Nxe5
{[%clk 0:00:13.3]} 45. Nxd6+ {[%clk 0:00:15.4]} 45... Kg6 {[%clk 0:00:13.7]} 46.
Ra8 {[%clk 0:00:15.1]} 46... a2 {[%clk 0:00:13.6]} 47. Nc4 {[%clk 0:00:15.5]}
47... Nxc4 {[%clk 0:00:12.9]} 48. bxc4 {[%clk 0:00:16.2]} 48... Rb1+ {[%clk
0:00:13.3]} 49. Kf2 {[%clk 0:00:16.8]} 49... a1=Q {[%clk 0:00:14.2]} 50. Rxa1
{[%clk 0:00:16.4]} 50... Rxa1 {[%clk 0:00:15.1]} 51. e5 {[%clk 0:00:17.3]} 51...
b3 {[%clk 0:00:15.4]} 52. d6 {[%clk 0:00:16.7]} 52... b2 {[%clk 0:00:16.3]} 53.
d7 {[%clk 0:00:17.1]} 53... Rd1 {[%clk 0:00:16.3]} 54. e6 {[%clk 0:00:17]} 54...
b1=Q {[%clk 0:00:16.5]} 0-1

[Event "*** Titled Tuesday Blitz"]
[Site "Chess.com"]
[Date "2020.05.05"]
[Round "6"]
[White "GMJustin"]
[Black "mshuaau0"]
[Result "1-0"]
[WhiteElo "2380"]
[BlackElo "2121"]
[TimeControl "180+1"]
[EndTime "11:08:27 PDT"]
[Termination "GMJustin won by resignation"]

1. e4 {[%clk 0:02:59.8]} 1... e5 {[%clk 0:02:59.7]} 2. c3 {[%clk 0:02:54.7]}
2... d5 {[%clk 0:02:53.8]} 3. exd5 {[%clk 0:02:50.9]} 3... Qxd5 {[%clk
0:02:53.8]} 4. d4 {[%clk 0:02:50.7]} 4... exd4 {[%clk 0:02:53.4]} 5. cxd4 {[%clk
0:02:48.1]} 5... Nc6 {[%clk 0:02:50.8]} 6. Nf3 {[%clk 0:02:39.8]} 6... Bg4
{[%clk 0:02:47.6]} 7. Be2 {[%clk 0:02:29.3]} 7... O-O-O {[%clk 0:02:38.9]} 8.
O-O {[%clk 0:02:14.9]} 8... Bxf3 {[%clk 0:01:57.3]} 9. Bxf3 {[%clk 0:02:14]}
9... Qxd4 {[%clk 0:01:57.4]} 10. Qb3 {[%clk 0:02:12.6]} 10... Qb6 {[%clk
0:01:33.4]} 11. Qxf7 {[%clk 0:02:03.8]} 11... Nf6 {[%clk 0:01:31.8]} 12. Be3
{[%clk 0:01:44.1]} 12... Qxb2 {[%clk 0:01:26.1]} 13. Bxc6 {[%clk 0:01:28.3]}
13... bxc6 {[%clk 0:00:54.3]} 14. Qe6+ {[%clk 0:01:20.1]} 14... Rd7 {[%clk
0:00:35.2]} 15. Nd2 {[%clk 0:01:17.7]} 15... Bd6 {[%clk 0:00:31.5]} 16. Nc4
{[%clk 0:01:10.6]} 16... Qc3 {[%clk 0:00:10.8]} 17. Nxd6+ {[%clk 0:01:03.9]}
17... cxd6 {[%clk 0:00:10]} 18. Rfc1 {[%clk 0:00:59.7]} 18... Qe5 {[%clk
0:00:10]} 19. Rxc6+ {[%clk 0:00:35.5]} 19... Kb7 {[%clk 0:00:09.7]} 20. Qb3+
{[%clk 0:00:20.6]} 20... Kxc6 {[%clk 0:00:09]} 21. Rc1+ {[%clk 0:00:20.5]} 21...
Qc5 {[%clk 0:00:06.3]} 22. Bxc5 {[%clk 0:00:20.5]} 22... dxc5 {[%clk 0:00:06.5]}
23. Qa4+ {[%clk 0:00:19.7]} 23... Kc7 {[%clk 0:00:06.8]} 24. Rxc5+ {[%clk
0:00:18.3]} 24... Kd6 {[%clk 0:00:07.7]} 25. Qc6+ {[%clk 0:00:13.5]} 25... Ke7
{[%clk 0:00:07.5]} 26. Re5+ {[%clk 0:00:13.3]} 26... Kf7 {[%clk 0:00:07.2]} 27.
h3 {[%clk 0:00:12.7]} 27... Rhd8 {[%clk 0:00:07.7]} 28. Qe6+ {[%clk 0:00:11]}
28... Kg6 {[%clk 0:00:07.1]} 29. g4 {[%clk 0:00:10.1]} 29... h6 {[%clk
0:00:07.4]} 30. h4 {[%clk 0:00:08.7]} 30... Rd6 {[%clk 0:00:07.8]} 31. Qf5+
{[%clk 0:00:08.4]} 31... Kf7 {[%clk 0:00:07.8]} 32. g5 {[%clk 0:00:08.4]} 32...
hxg5 {[%clk 0:00:07.5]} 33. hxg5 {[%clk 0:00:08.4]} 33... g6 {[%clk 0:00:07.9]}
34. Qf3 {[%clk 0:00:08.4]} 34... Rh8 {[%clk 0:00:07.8]} 35. gxf6 {[%clk
0:00:07.3]} 35... Rxf6 {[%clk 0:00:08.7]} 36. Qg3 {[%clk 0:00:06]} 36... Rh5
{[%clk 0:00:09]} 37. Rxh5 {[%clk 0:00:05.7]} 37... gxh5 {[%clk 0:00:09.4]} 38.
Kf1 {[%clk 0:00:06]} 38... Rg6 {[%clk 0:00:09.5]} 39. Qe5 {[%clk 0:00:05.1]}
39... Rf6 {[%clk 0:00:10.4]} 40. Qxh5+ {[%clk 0:00:05.1]} 40... Ke7 {[%clk
0:00:11.2]} 41. Qa5 {[%clk 0:00:05.1]} 41... Re6 {[%clk 0:00:12.1]} 42. Qxa7+
{[%clk 0:00:05.2]} 42... Kf6 {[%clk 0:00:13]} 43. Qd4+ {[%clk 0:00:04.7]} 43...
Kf7 {[%clk 0:00:13]} 44. f3 {[%clk 0:00:05]} 44... Ke7 {[%clk 0:00:13.1]} 45.
Qf4 {[%clk 0:00:05]} 45... Ra6 {[%clk 0:00:13.3]} 46. Kf2 {[%clk 0:00:05.2]}
46... Rxa2+ {[%clk 0:00:12.9]} 47. Kg3 {[%clk 0:00:05.5]} 47... Ra6 {[%clk
0:00:13.8]} 48. Kg4 {[%clk 0:00:05.6]} 48... Re6 {[%clk 0:00:14.1]} 49. Qf5
{[%clk 0:00:05.6]} 49... Ra6 {[%clk 0:00:14.4]} 50. f4 {[%clk 0:00:05.7]} 50...
Ra4 {[%clk 0:00:14.5]} 51. Qe5+ {[%clk 0:00:05.7]} 51... Kf8 {[%clk 0:00:14.1]}
52. Kg5 {[%clk 0:00:05.9]} 52... Ra7 {[%clk 0:00:13.5]} 53. f5 {[%clk 0:00:06]}
53... Rf7 {[%clk 0:00:13.9]} 54. Kg6 {[%clk 0:00:05.9]} 54... Ra7 {[%clk
0:00:13.9]} 55. Qb8+ {[%clk 0:00:05.2]} 55... Ke7 {[%clk 0:00:12.7]} 56. f6+
{[%clk 0:00:05.4]} 56... Ke6 {[%clk 0:00:12.6]} 57. Qxa7 {[%clk 0:00:05.6]} 1-0

[Event "*** Titled Tuesday Blitz"]
[Site "Chess.com"]
[Date "2020.05.05"]
[Round "6"]
[White "Alexander_Moskalenko"]
[Black "NikolaGry"]
[Result "0-1"]
[WhiteElo "2823"]
[BlackElo "2632"]
[TimeControl "180+1"]
[EndTime "11:08:28 PDT"]
[Termination "NikolaGry won on time"]

1. d4 {[%clk 0:02:22.4]} 1... d5 {[%clk 0:02:58.6]} 2. Bg5 {[%clk 0:02:21.8]}
2... c6 {[%clk 0:02:58.4]} 3. e3 {[%clk 0:02:21.1]} 3... Qb6 {[%clk 0:02:58.6]}
4. Qc1 {[%clk 0:02:21.1]} 4... Bf5 {[%clk 0:02:57.9]} 5. c4 {[%clk 0:02:20.9]}
5... e6 {[%clk 0:02:57.9]} 6. c5 {[%clk 0:02:21]} 6... Qc7 {[%clk 0:02:53.7]} 7.
Nc3 {[%clk 0:02:21.5]} 7... Nd7 {[%clk 0:02:49]} 8. Nf3 {[%clk 0:02:17.3]} 8...
f6 {[%clk 0:02:43.8]} 9. Bf4 {[%clk 0:02:17.1]} 9... e5 {[%clk 0:02:41.9]} 10.
Bg3 {[%clk 0:02:17.6]} 10... h5 {[%clk 0:02:27.2]} 11. Be2 {[%clk 0:02:06.3]}
11... Ne7 {[%clk 0:02:20.3]} 12. b4 {[%clk 0:01:50.4]} 12... g5 {[%clk 0:02:07]}
13. h4 {[%clk 0:01:49.3]} 13... g4 {[%clk 0:02:05.8]} 14. Nd2 {[%clk 0:01:49.8]}
14... Bg6 {[%clk 0:01:57.5]} 15. e4 {[%clk 0:01:45.6]} 15... Bh6 {[%clk
0:01:52.1]} 16. Qb2 {[%clk 0:01:40.1]} 16... O-O {[%clk 0:01:36.3]} 17. Rd1
{[%clk 0:01:29.4]} 17... f5 {[%clk 0:01:29.1]} 18. exd5 {[%clk 0:01:25.3]} 18...
Nxd5 {[%clk 0:01:27.1]} 19. Nxd5 {[%clk 0:01:24.6]} 19... cxd5 {[%clk
0:01:26.5]} 20. Bxe5 {[%clk 0:01:25.2]} 20... Nxe5 {[%clk 0:01:24.3]} 21. dxe5
{[%clk 0:01:26.1]} 21... Rae8 {[%clk 0:01:19.9]} 22. O-O {[%clk 0:01:20.3]}
22... f4 {[%clk 0:01:18.4]} 23. Nb3 {[%clk 0:01:12.2]} 23... Rxe5 {[%clk
0:01:12.5]} 24. Bd3 {[%clk 0:01:11.4]} 24... Bxd3 {[%clk 0:01:04.2]} 25. Rxd3
{[%clk 0:01:12.3]} 25... Bg7 {[%clk 0:01:03.3]} 26. Qd2 {[%clk 0:01:09.7]} 26...
Qe7 {[%clk 0:00:55.6]} 27. Rxd5 {[%clk 0:01:08.9]} 27... Re2 {[%clk 0:00:54.6]}
28. Rd7 {[%clk 0:01:08.3]} 28... Qe6 {[%clk 0:00:41.7]} 29. Qd6 {[%clk 0:00:47]}
29... f3 {[%clk 0:00:33.2]} 30. Qxe6+ {[%clk 0:00:44.2]} 30... Rxe6 {[%clk
0:00:32.6]} 31. Rxb7 {[%clk 0:00:45.1]} 31... g3 {[%clk 0:00:30.1]} 32. fxg3
{[%clk 0:00:41.5]} 32... f2+ {[%clk 0:00:30.1]} 33. Kh2 {[%clk 0:00:40.1]} 33...
Re1 {[%clk 0:00:29.8]} 34. Rxg7+ {[%clk 0:00:35.7]} 34... Kxg7 {[%clk 0:00:29]}
35. Nd2 {[%clk 0:00:36.6]} 35... Rxf1 {[%clk 0:00:26.4]} 36. Nxf1 {[%clk
0:00:36.7]} 36... Re8 {[%clk 0:00:25.5]} 37. g4 {[%clk 0:00:27.4]} 37... Re1
{[%clk 0:00:23.8]} 38. Kg3 {[%clk 0:00:16.3]} 38... Rxf1 {[%clk 0:00:21.7]} 39.
a3 {[%clk 0:00:16.1]} 39... hxg4 {[%clk 0:00:20.9]} 40. h5 {[%clk 0:00:13]}
40... Kh6 {[%clk 0:00:20.1]} 41. b5 {[%clk 0:00:12.8]} 41... Kxh5 {[%clk
0:00:19.6]} 42. c6 {[%clk 0:00:13.7]} 42... Rc1 {[%clk 0:00:19.6]} 43. Kxf2
{[%clk 0:00:12.5]} 43... Rc3 {[%clk 0:00:18.5]} 44. a4 {[%clk 0:00:13.4]} 44...
Rc4 {[%clk 0:00:17.9]} 45. a5 {[%clk 0:00:09]} 45... Kg6 {[%clk 0:00:17]} 46.
Kg3 {[%clk 0:00:07.5]} 46... Kf6 {[%clk 0:00:16.7]} 47. Kh4 {[%clk 0:00:07.9]}
47... Ke6 {[%clk 0:00:16.7]} 48. b6 {[%clk 0:00:05.6]} 48... axb6 {[%clk
0:00:15.7]} 49. axb6 {[%clk 0:00:06.5]} 49... Rxc6 {[%clk 0:00:15.7]} 50. b7
{[%clk 0:00:07.4]} 50... Rb6 {[%clk 0:00:15.8]} 51. Kxg4 {[%clk 0:00:08.3]}
51... Rxb7 {[%clk 0:00:16]} 52. Kh5 {[%clk 0:00:09.2]} 52... Rg7 {[%clk
0:00:15.7]} 53. g4 {[%clk 0:00:10.1]} 53... Kf6 {[%clk 0:00:15.9]} 54. g5+
{[%clk 0:00:11]} 54... Rxg5+ {[%clk 0:00:15.8]} 0-1

[Event "*** Titled Tuesday Blitz"]
[Site "Chess.com"]
[Date "2020.05.05"]
[Round "6"]
[White "CakeinSpace2002"]
[Black "SaqoChess_Twitch"]
[Result "0-1"]
[WhiteElo "2211"]
[BlackElo "2404"]
[TimeControl "180+1"]
[EndTime "11:08:29 PDT"]
[Termination "SaqoChess_Twitch won on time"]

1. e4 {[%clk 0:02:08.2]} 1... c5 {[%clk 0:02:59.1]} 2. Nf3 {[%clk 0:02:07.9]}
2... d6 {[%clk 0:02:59.4]} 3. Bb5+ {[%clk 0:02:05.8]} 3... Bd7 {[%clk
0:02:58.2]} 4. Bxd7+ {[%clk 0:02:04.6]} 4... Qxd7 {[%clk 0:02:59.1]} 5. O-O
{[%clk 0:02:04.7]} 5... Nc6 {[%clk 0:02:59.4]} 6. Re1 {[%clk 0:02:04.5]} 6...
Nf6 {[%clk 0:02:59.7]} 7. c3 {[%clk 0:02:04.1]} 7... e6 {[%clk 0:03:00]} 8. d4
{[%clk 0:02:03.9]} 8... cxd4 {[%clk 0:03:00.9]} 9. cxd4 {[%clk 0:02:04.3]} 9...
d5 {[%clk 0:03:01.5]} 10. e5 {[%clk 0:02:04.5]} 10... Ne4 {[%clk 0:03:02.1]} 11.
Nbd2 {[%clk 0:02:05]} 11... Nxd2 {[%clk 0:03:00.1]} 12. Bxd2 {[%clk 0:02:05.9]}
12... Be7 {[%clk 0:03:00]} 13. Rc1 {[%clk 0:02:05.4]} 13... O-O {[%clk
0:03:00.1]} 14. Rc3 {[%clk 0:02:04.5]} 14... Rfc8 {[%clk 0:02:59.3]} 15. Rd3
{[%clk 0:01:56.4]} 15... Bb4 {[%clk 0:02:46.3]} 16. Ng5 {[%clk 0:01:42.3]} 16...
Bxd2 {[%clk 0:02:44.7]} 17. Qxd2 {[%clk 0:01:43.2]} 17... h6 {[%clk 0:02:43.6]}
18. Nh3 {[%clk 0:01:42.7]} 18... a6 {[%clk 0:02:40.6]} 19. Rg3 {[%clk
0:01:35.5]} 19... Kh7 {[%clk 0:02:39.2]} 20. Nf4 {[%clk 0:01:35.2]} 20... Ne7
{[%clk 0:02:33.8]} 21. Nh5 {[%clk 0:01:32.3]} 21... Ng6 {[%clk 0:02:25.6]} 22.
Rh3 {[%clk 0:01:05.1]} 22... Qd8 {[%clk 0:01:57.2]} 23. Rf3 {[%clk 0:00:25.4]}
23... Qh4 {[%clk 0:01:49.2]} 24. Ng3 {[%clk 0:00:23.4]} 24... Rc7 {[%clk
0:01:47.3]} 25. h3 {[%clk 0:00:22.1]} 25... Rac8 {[%clk 0:01:45.8]} 26. Rb3
{[%clk 0:00:22]} 26... Rc2 {[%clk 0:01:39.1]} 27. Qe3 {[%clk 0:00:21.6]} 27...
R8c7 {[%clk 0:01:38.8]} 28. Re2 {[%clk 0:00:20.4]} 28... Rc1+ {[%clk 0:01:30.5]}
29. Re1 {[%clk 0:00:20.3]} 29... Qf4 {[%clk 0:01:25]} 30. Rxc1 {[%clk
0:00:17.7]} 30... Rxc1+ {[%clk 0:01:24.9]} 31. Kh2 {[%clk 0:00:17.8]} 31... Qxe3
{[%clk 0:01:24.8]} 32. fxe3 {[%clk 0:00:17.9]} 32... Rc7 {[%clk 0:01:24.2]} 33.
e4 {[%clk 0:00:17.5]} 33... Nf4 {[%clk 0:01:22.6]} 34. exd5 {[%clk 0:00:16]}
34... Nxd5 {[%clk 0:01:23.5]} 35. Ne4 {[%clk 0:00:16.2]} 35... b5 {[%clk
0:01:22.8]} 36. Nc5 {[%clk 0:00:16.2]} 36... Rc6 {[%clk 0:01:23.1]} 37. Ra3
{[%clk 0:00:16.1]} 37... Nb4 {[%clk 0:01:22.1]} 38. Rf3 {[%clk 0:00:15.4]} 38...
Kg8 {[%clk 0:01:20.2]} 39. a3 {[%clk 0:00:13.3]} 39... Nc2 {[%clk 0:01:19.6]}
40. Rf4 {[%clk 0:00:12.4]} 40... Nxd4 {[%clk 0:01:18.7]} 41. Nxa6 {[%clk
0:00:11.6]} 41... Nf5 {[%clk 0:01:10]} 42. Nb4 {[%clk 0:00:10.6]} 42... Rc5
{[%clk 0:01:10.5]} 43. Re4 {[%clk 0:00:10.2]} 43... h5 {[%clk 0:01:07.2]} 44.
Na6 {[%clk 0:00:09.7]} 44... Rc2 {[%clk 0:01:06.5]} 45. b4 {[%clk 0:00:09.1]}
45... h4 {[%clk 0:01:05.4]} 46. Kg1 {[%clk 0:00:06.5]} 46... g5 {[%clk
0:01:05.5]} 47. Rg4 {[%clk 0:00:05.8]} 47... Rc1+ {[%clk 0:01:00.1]} 48. Kf2
{[%clk 0:00:05.3]} 48... Rc2+ {[%clk 0:00:59.1]} 49. Kg1 {[%clk 0:00:05.4]}
49... f6 {[%clk 0:00:55.1]} 50. exf6 {[%clk 0:00:04.2]} 50... Kf7 {[%clk
0:00:56]} 51. Rxg5 {[%clk 0:00:04.5]} 51... Kxf6 {[%clk 0:00:56.9]} 52. Rg4
{[%clk 0:00:05]} 52... Ne3 {[%clk 0:00:54.1]} 53. Rf4+ {[%clk 0:00:03.9]} 53...
Kg5 {[%clk 0:00:52.8]} 54. Rf3 {[%clk 0:00:03.9]} 54... Rxg2+ {[%clk 0:00:48.1]}
55. Kh1 {[%clk 0:00:03.7]} 55... Re2 {[%clk 0:00:48.6]} 56. Nc7 {[%clk
0:00:02.9]} 56... Nf5 {[%clk 0:00:48.1]} 57. Nxb5 {[%clk 0:00:01.5]} 57... e5
{[%clk 0:00:45.1]} 0-1

[Event "*** Titled Tuesday Blitz"]
[Site "Chess.com"]
[Date "2020.05.05"]
[Round "6"]
[White "afgano29"]
[Black "DrVitman"]
[Result "0-1"]
[WhiteElo "2691"]
[BlackElo "2524"]
[TimeControl "180+1"]
[EndTime "11:08:30 PDT"]
[Termination "DrVitman won by resignation"]

1. d4 {[%clk 0:03:00.8]} 1... Nf6 {[%clk 0:02:55.5]} 2. c4 {[%clk 0:03:01]} 2...
g6 {[%clk 0:02:55.4]} 3. Nc3 {[%clk 0:03:01.2]} 3... d5 {[%clk 0:02:55.8]} 4.
Nf3 {[%clk 0:03:01.6]} 4... Bg7 {[%clk 0:02:55.3]} 5. Bg5 {[%clk 0:03:01.7]}
5... Ne4 {[%clk 0:02:54.7]} 6. cxd5 {[%clk 0:03:02]} 6... Nxg5 {[%clk
0:02:46.5]} 7. Nxg5 {[%clk 0:03:02.9]} 7... e6 {[%clk 0:02:47.1]} 8. Nf3 {[%clk
0:03:03.3]} 8... exd5 {[%clk 0:02:46.7]} 9. e3 {[%clk 0:03:03.7]} 9... O-O
{[%clk 0:02:46.3]} 10. Be2 {[%clk 0:03:02.2]} 10... c6 {[%clk 0:02:46.4]} 11. b4
{[%clk 0:02:59.7]} 11... Qe7 {[%clk 0:02:36.7]} 12. Rb1 {[%clk 0:02:58.8]} 12...
a6 {[%clk 0:02:34]} 13. O-O {[%clk 0:02:57.6]} 13... b5 {[%clk 0:02:33.1]} 14.
Nd2 {[%clk 0:02:54.8]} 14... Nd7 {[%clk 0:02:32.4]} 15. a3 {[%clk 0:02:42.6]}
15... Nb6 {[%clk 0:02:31.9]} 16. Nb3 {[%clk 0:02:42.7]} 16... Nc4 {[%clk
0:02:31.5]} 17. Qc1 {[%clk 0:02:37.7]} 17... Bf5 {[%clk 0:02:28.3]} 18. Ra1
{[%clk 0:02:36.4]} 18... h5 {[%clk 0:02:21.7]} 19. Nc5 {[%clk 0:02:35.5]} 19...
h4 {[%clk 0:02:06]} 20. a4 {[%clk 0:02:33.5]} 20... h3 {[%clk 0:01:56.7]} 21. g3
{[%clk 0:02:32.1]} 21... Bh6 {[%clk 0:01:55.7]} 22. Bxc4 {[%clk 0:02:19.6]}
22... bxc4 {[%clk 0:01:50.6]} 23. Qd2 {[%clk 0:02:06.4]} 23... Bg4 {[%clk
0:01:38.1]} 24. b5 {[%clk 0:02:01.2]} 24... axb5 {[%clk 0:01:37.4]} 25. axb5
{[%clk 0:02:02.1]} 25... Rxa1 {[%clk 0:01:36.6]} 26. Rxa1 {[%clk 0:02:02]} 26...
Qf6 {[%clk 0:01:23.6]} 27. f4 {[%clk 0:02:01.3]} 27... cxb5 {[%clk 0:01:16]} 28.
Nxd5 {[%clk 0:01:58.3]} 28... Qd8 {[%clk 0:01:05.2]} 29. e4 {[%clk 0:01:51.8]}
29... Bg7 {[%clk 0:00:59]} 30. Ra7 {[%clk 0:01:35.5]} 30... Be6 {[%clk
0:00:53.7]} 31. Ne7+ {[%clk 0:01:25]} 31... Kh7 {[%clk 0:00:46.7]} 32. Nc6
{[%clk 0:01:17.1]} 32... Qb6 {[%clk 0:00:28.7]} 33. Ra6 {[%clk 0:01:16.8]} 33...
Qc7 {[%clk 0:00:19.4]} 34. Nxe6 {[%clk 0:01:09.6]} 34... fxe6 {[%clk 0:00:18.9]}
35. e5 {[%clk 0:01:09.7]} 35... Qb7 {[%clk 0:00:15.8]} 36. Qa5 {[%clk
0:01:06.5]} 36... Rc8 {[%clk 0:00:14.5]} 37. Rb6 {[%clk 0:01:01.2]} 37... Qd7
{[%clk 0:00:13]} 38. Qxb5 {[%clk 0:00:50.2]} 38... c3 {[%clk 0:00:11.6]} 39. Qc4
{[%clk 0:00:45.5]} 39... Qc7 {[%clk 0:00:05.3]} 40. Ra6 {[%clk 0:00:43.6]} 40...
Qb7 {[%clk 0:00:05.1]} 41. d5 {[%clk 0:00:38.3]} 41... exd5 {[%clk 0:00:04.4]}
42. Qa4 {[%clk 0:00:14.2]} 42... c2 {[%clk 0:00:03.1]} 43. Qxc2 {[%clk
0:00:11.2]} 43... Qxa6 {[%clk 0:00:02.9]} 44. f5 {[%clk 0:00:12.1]} 44... Qxc6
{[%clk 0:00:02.4]} 45. fxg6+ {[%clk 0:00:12]} 45... Kh8 {[%clk 0:00:03]} 46. Qf5
{[%clk 0:00:10.8]} 46... Qc1+ {[%clk 0:00:03.9]} 47. Kf2 {[%clk 0:00:10.4]}
47... Rc2+ {[%clk 0:00:04.5]} 48. Kf3 {[%clk 0:00:10.7]} 48... Qf1+ {[%clk
0:00:04.6]} 49. Kg4 {[%clk 0:00:10.8]} 49... Qxf5+ {[%clk 0:00:05.1]} 0-1